bitfinex/quotes_ETHUSD_20230404
["timestamp","ask_amount","ask_price","bid_price","bid_amount"]
[1680615144844,13.71326044,1876.0,1875.9,0.38038006]
[1680615145062,10.68930078,1876.0,1875.9,0.38038006]
[1680615145242,15.77758078,1876.0,1875.9,0.38038006]
[1680615145832,15.77758078,1876.0,1875.9,0.33994451]
[1680615146779,15.77758078,1876.0,1875.9,0.29982293]
[1680615147732,15.77758078,1876.0,1875.9,0.26011387]
[1680615148368,15.39379078,1876.0,1875.9,0.26011387]
[1680615148547,15.52172078,1876.0,1875.9,0.26011387]
[1680615148754,15.77758078,1876.0,1875.9,0.22339331]
[1680615149587,16.28930078,1876.0,1875.9,0.22339331]
[1680615149792,19.28930078,1876.0,1875.9,0.18703996]
[1680615150682,18.52172078,1876.0,1875.9,0.18703996]
[1680615150897,18.77758078,1876.0,1875.9,0.15109534]
[1680615151986,18.77758078,1876.0,1875.9,0.11551016]
[1680615152157,20.65879078,1876.0,1875.9,0.11551016]
[1680615152357,20.78672078,1876.0,1875.9,0.11551016]
[1680615152558,21.04258078,1876.0,1875.9,0.11551016]
[1680615152908,21.17184684,1876.0,1875.6,0.1]
[1680615153107,11.079,1875.7,1875.6,0.1]
[1680615153408,12.19087218,1875.7,1875.6,0.1]
[1680615153576,14.96867218,1875.7,1875.6,0.1]
[1680615153771,17.96867218,1875.7,1875.6,0.1]
[1680615153975,17.47883184,1875.7,1875.6,0.1]
[1680615154178,18.97081502,1875.7,1875.6,0.1]
[1680615154660,13.93875536,1875.7,1875.6,0.1]
[1680615156105,16.20975536,1875.7,1875.6,0.1]
[1680615157113,16.73838863,1875.7,1875.6,0.1]
[1680615157756,16.73838863,1875.7,1875.4,0.1]
[1680615158101,11.44889,1875.5,1875.4,0.1]
[1680615158312,13.96198218,1875.5,1875.4,0.1]
[1680615158471,14.19198218,1875.5,1875.4,0.1]
[1680615158654,14.44791218,1875.5,1875.4,0.1]
[1680615159090,14.06402218,1875.5,1875.4,0.1]
[1680615159392,7.55080828,1875.5,1875.4,0.1]
[1680615159595,5.97702218,1875.5,1875.4,0.1]
[1680615159901,11.57702218,1875.5,1875.4,0.1]
[1680615160110,5.97702218,1875.5,1875.4,0.1]
[1680615160610,6.59091218,1875.5,1875.4,0.1]
[1680615162311,12.19091218,1875.5,1875.0,0.1]
[1680615162476,11.57402218,1875.1,1875.0,0.1]
[1680615162675,8.808,1874.9,1874.5,0.1]
[1680615162999,8.808,1874.9,1874.2,0.1]
[1680615163000,3.206,1874.4,1874.3,0.002]
[1680615163165,3.206,1874.4,1873.9,0.1]
[1680615163166,7.23606218,1874.4,1873.9,0.1]
[1680615163364,5.97202218,1874.0,1873.9,0.1]
[1680615163719,9.49621218,1874.0,1873.9,0.05]
[1680615163895,10.63232006,1874.0,1873.9,0.05]
[1680615164058,11.76332006,1874.0,1873.9,0.05]
[1680615164415,17.37032006,1874.0,1873.9,0.05]
[1680615164559,3.439,1874.0,1873.9,0.05]
[1680615164756,3.218,1874.2,1873.9,0.05]
[1680615165000,6.35818218,1874.2,1873.9,0.05]
[1680615165209,5.97702218,1874.2,1873.9,0.05]
[1680615165367,3.208,1874.0,1873.9,0.05]
[1680615165902,3.33606,1874.0,1873.9,0.05]
[1680615166403,0.23,1874.0,1873.9,0.05]
[1680615166605,3.438,1874.0,1873.9,0.05]
[1680615166788,3.208,1874.0,1873.9,0.05]
[1680615167167,5.97402218,1874.0,1873.9,0.05]
[1680615167367,6.29782218,1874.0,1873.9,0.05]
[1680615167916,11.91978184,1874.0,1873.9,0.05]
[1680615168267,6.54978184,1874.0,1873.9,0.05]
[1680615168428,6.67784184,1874.0,1873.9,0.05]
[1680615169132,6.93397184,1874.0,1873.9,0.05]
[1680615169715,12.53397184,1874.0,1873.9,0.05]
[1680615170376,14.51197184,1874.0,1873.9,0.05]
[1680615171271,6.93397184,1874.0,1873.9,0.05]
[1680615172439,12.53397184,1874.0,1873.9,0.05]
[1680615174639,0.23948,1873.7,1873.2,0.76052]
[1680615174842,3.208,1873.6,1873.2,2.84452]
[1680615174997,3.215,1873.6,1873.2,3.05805]
[1680615175334,3.215,1873.6,1873.2,3.48512]
[1680615175490,3.208,1873.6,1873.2,2.55805]
[1680615175692,3.215,1873.6,1873.2,2.55805]
[1680615175891,0.007,1873.6,1873.2,2.34452]
[1680615176101,3.208,1873.5,1873.2,2.55805]
[1680615176302,3.208,1873.5,1873.2,2.60954994]
[1680615176512,0.007,1873.6,1873.3,2.20752]
[1680615176844,0.007,1873.7,1873.3,2.20752]
[1680615177137,0.007,1873.7,1873.3,3.48867]
[1680615178118,4.215,1873.8,1873.3,2.63457]
[1680615178507,4.215,1873.8,1873.3,2.20752]
[1680615178821,4.215,1873.8,1873.4,0.21351]
[1680615178822,6.98102218,1873.8,1873.4,0.21351]
[1680615179027,0.23,1873.7,1873.4,0.21351]
[1680615179337,0.007,1873.7,1873.4,0.21351]
[1680615179535,0.007,1873.7,1873.4,0.2135]
[1680615179752,0.007,1873.9,1873.4,3.40655218]
[1680615179903,3.215,1874.0,1873.7,1.983]
[1680615180238,3.215,1874.0,1873.8,0.21346]
[1680615180766,0.007,1874.0,1873.8,0.21346]
[1680615181039,0.007,1874.1,1873.8,0.21346]
[1680615181192,0.007,1874.1,1873.7,2.19647]
[1680615181509,0.007,1874.1,1873.7,2.62343]
[1680615181895,0.007,1874.1,1873.7,2.19647]
[1680615182737,0.007,1874.1,1873.8,1.994]
[1680615182936,0.007,1874.1,1873.9,0.21345]
[1680615183356,0.007,1874.1,1873.8,1.994]
[1680615183555,0.007,1874.1,1873.7,1.995]
[1680615183758,5.97402218,1874.0,1873.7,1.993]
[1680615183957,3.208,1873.8,1873.6,5.8677]
[1680615184274,3.208,1873.8,1873.6,0.21348]
[1680615184275,3.215,1873.8,1873.6,0.21348]
[1680615184454,3.215,1873.8,1873.5,11.7876]
[1680615184655,3.208,1873.6,1873.5,11.7876]
[1680615184861,3.215,1873.6,1873.4,0.002]
[1680615185060,3.208,1873.6,1873.2,2.134]
[1680615185229,0.1281,1873.5,1873.2,2.134]
[1680615185433,4.215,1873.6,1873.1,11.7368]
[1680615185628,3.208,1873.4,1873.1,11.7348]
[1680615186431,3.208,1873.2,1873.0,0.008]
[1680615186633,3.211,1873.2,1873.0,0.16355]
[1680615186870,3.208,1873.2,1873.0,0.16355]
[1680615187182,3.208,1873.2,1873.0,0.21355]
[1680615187326,3.208,1873.2,1872.9,0.21356]
[1680615187843,3.208,1873.2,1872.9,0.6407]
[1680615188365,3.208,1873.2,1872.9,1.49499]
[1680615188675,3.208,1873.2,1872.9,0.16356]
[1680615188831,3.208,1873.2,1872.9,0.5907]
[1680615189031,3.208,1873.2,1872.9,0.16356]
[1680615189380,0.01,1873.3,1872.9,2.19657]
[1680615189529,0.02195966,1873.4,1872.9,1.983]
[1680615189729,1.0,1873.3,1872.9,1.983]
[1680615189949,3.208,1873.2,1872.9,2.19656]
[1680615190342,3.215,1873.2,1872.9,2.19656]
[1680615190581,3.215,1873.2,1872.8,14.84945994]
[1680615190762,3.208,1873.2,1872.8,14.63386994]
[1680615190971,3.215,1873.2,1872.8,14.63386994]
[1680615191172,3.33612,1873.2,1872.8,14.42029994]
[1680615191377,3.215,1873.2,1872.8,13.8688]
[1680615191984,3.59236,1873.2,1872.8,13.8688]
[1680615192288,3.215,1873.2,1872.8,14.42029994]
[1680615192491,3.215,1873.2,1872.8,13.8688]
[1680615192492,3.208,1873.1,1872.8,13.8688]
[1680615192659,3.208,1873.1,1872.8,14.58387994]
[1680615192988,3.208,1873.1,1872.9,0.21357]
[1680615193304,3.208,1873.1,1872.8,14.37029994]
[1680615193449,3.215,1873.2,1872.8,14.58386994]
[1680615193798,3.215,1873.2,1872.8,13.73135994]
[1680615194444,0.007,1873.2,1872.8,13.73135994]
[1680615194649,0.007,1873.3,1872.9,2.134]
[1680615194898,1.0,1873.5,1873.0,0.64066]
[1680615195396,3.203,1873.6,1873.1,2.134]
[1680615195602,0.953,1873.7,1873.2,2.63059]
[1680615195901,0.95,1873.7,1873.2,16.10639]
[1680615196583,0.95,1873.7,1873.2,16.65788994]
[1680615196998,3.203,1873.6,1873.2,14.24082994]
[1680615197287,3.203,1873.6,1873.2,14.1164]
[1680615197858,3.203,1873.6,1873.2,2.7806]
[1680615198260,0.003,1873.8,1873.3,1.994]
[1680615198588,2.02209805,1874.1,1873.6,1.993]
[1680615198589,0.953,1874.1,1873.6,1.993]
[1680615198759,0.95,1874.1,1873.7,0.21347]
[1680615198960,0.95,1874.1,1873.7,2.134]
[1680615199174,0.95,1874.1,1873.7,2.34747]
[1680615199379,4.153,1874.1,1873.7,2.134]
[1680615199547,4.153,1874.1,1873.7,2.35347]
[1680615200109,4.153,1874.1,1873.7,2.14]
[1680615200271,4.153,1874.1,1873.7,2.35347]
[1680615200471,4.153,1874.1,1873.7,2.14]
[1680615200906,4.153,1874.1,1873.7,2.35347]
[1680615201084,4.153,1874.1,1873.7,2.14]
[1680615201781,4.53718,1874.1,1873.7,2.14]
[1680615201986,4.55913966,1874.1,1873.7,0.006]
[1680615202299,7.52305984,1874.1,1873.6,0.006]
[1680615202502,0.23,1874.0,1873.6,0.006]
[1680615202883,3.203,1873.8,1873.6,0.006]
[1680615203425,3.203,1873.8,1873.5,0.55749994]
[1680615203577,3.6186,1873.8,1873.5,0.006]
[1680615204115,3.6186,1873.8,1873.4,0.55749994]
[1680615204519,3.6186,1873.8,1873.4,0.77100994]
[1680615205391,3.203,1873.8,1873.5,0.55149994]
[1680615205588,3.203,1873.8,1873.5,0.55749994]
[1680615205791,4.153,1873.8,1873.5,0.77098994]
[1680615206330,3.203,1873.8,1873.6,0.55149994]
[1680615206534,4.153,1873.8,1873.6,0.55149994]
[1680615206730,0.02495966,1873.9,1873.6,1.59223986]
[1680615206944,0.95,1873.8,1873.7,0.55149994]
[1680615207119,0.95,1873.8,1873.7,0.76497994]
[1680615207319,0.95,1873.8,1873.7,0.55149994]
[1680615207523,0.02195966,1873.9,1873.7,0.55149994]
[1680615207726,3.203,1874.1,1873.8,0.55149994]
[1680615208041,4.153,1874.1,1873.8,0.55149994]
[1680615208339,4.153,1874.1,1874.0,1.93024981]
[1680615208703,4.153,1874.1,1874.0,0.82724992]
[1680615209647,4.28106,1874.1,1874.0,1.3815507]
[1680615209851,4.51106,1874.1,1874.0,0.82724992]
[1680615210056,7.96230818,1874.1,1874.0,0.55432169]
[1680615210347,7.58112818,1874.1,1874.0,0.55432169]
[1680615210851,7.70918818,1874.1,1874.0,1.38157261]
[1680615211007,7.96530818,1874.1,1874.0,0.55432269]
[1680615211202,7.98726784,1874.1,1874.0,0.55432269]
[1680615211564,8.49950784,1874.1,1874.0,0.55432269]
[1680615211721,8.49950784,1874.1,1873.8,0.55432269]
[1680615212066,8.49950784,1874.1,1873.8,0.82724992]
[1680615212067,4.153,1873.9,1873.8,0.82724992]
[1680615212922,4.153,1873.9,1873.8,1.93024981]
[1680615213138,4.153,1873.9,1873.8,1.93480074]
[1680615213339,4.153,1873.9,1873.8,1.10299989]
[1680615213509,4.67729508,1873.9,1873.8,1.10299989]
[1680615213710,4.153,1873.9,1873.8,1.10299989]
[1680615214158,0.95,1873.9,1873.8,1.10299989]
[1680615214334,0.003,1874.1,1873.8,1.74338989]
[1680615214653,0.95,1873.9,1873.8,1.10299989]
[1680615215021,0.95,1873.9,1873.8,0.21346]
[1680615215223,0.95,1873.9,1873.8,1.59220986]
[1680615215624,0.95,1874.1,1873.8,0.64039]
[1680615215861,0.01,1874.3,1874.0,1.94025525]
[1680615216153,0.95,1874.4,1874.2,1.04484247]
[1680615216311,0.95,1874.4,1874.2,0.76748102]
[1680615216718,0.95,1874.4,1874.2,1.19432102]
[1680615217052,0.95,1874.4,1874.3,0.55407102]
[1680615217214,0.95,1874.4,1874.2,0.76748102]
[1680615217407,0.95,1874.5,1874.2,2.02575349]
[1680615217665,0.427078,1874.6,1874.4,3.93413144]
[1680615217810,0.427078,1874.6,1874.5,1.47160247]
[1680615218509,0.427078,1874.6,1874.5,1.04482247]
[1680615218708,0.427078,1874.6,1874.5,0.83143247]
[1680615218914,0.427078,1874.6,1874.5,1.38524728]
[1680615219141,0.427078,1874.6,1874.5,0.55381481]
[1680615219343,0.427078,1874.6,1874.4,2.97143247]
[1680615219344,0.427078,1874.6,1874.4,3.73463728]
[1680615219730,0.427078,1874.6,1874.5,0.55381481]
[1680615219731,0.42463509,1874.6,1874.5,0.55381481]
[1680615219935,0.42463509,1874.6,1874.5,0.76720481]
[1680615220129,0.42463509,1874.6,1874.4,2.68581481]
[1680615220339,0.42463509,1874.6,1874.5,0.21339]
[1680615220856,0.42463509,1874.6,1874.4,3.32600481]
[1680615221060,0.42463509,1874.6,1874.4,2.89920481]
[1680615221257,0.42463509,1874.6,1874.4,2.68581481]
[1680615221468,0.42463509,1874.6,1874.5,0.64017]
[1680615221665,0.42463509,1874.6,1874.4,3.11260481]
[1680615221853,0.42463509,1874.6,1874.4,2.34539]
[1680615222367,0.42463509,1874.6,1874.4,2.132]
[1680615222516,0.42463509,1874.6,1874.5,0.64017]
[1680615223660,0.95,1874.7,1874.5,0.64017]
[1680615225090,0.95,1874.7,1874.5,1.49373]
[1680615225588,1.05,1874.9,1874.6,4.89802218]
[1680615225887,1.05,1874.9,1874.7,3.62722]
[1680615226084,1.05,1874.9,1874.7,8.52524218]
[1680615226085,0.1,1874.9,1874.7,8.52524218]
[1680615226390,0.1,1874.9,1874.8,0.21335]
[1680615226562,0.1,1874.9,1874.7,12.15951]
[1680615226563,0.1,1874.9,1874.7,11.7328]
[1680615226746,0.1,1874.9,1874.7,14.07816]
[1680615226949,0.1,1874.9,1874.7,13.8648]
[1680615227154,0.1,1874.9,1874.7,11.7328]
[1680615228076,0.1,1874.9,1874.7,11.7388]
[1680615228386,0.1,1874.9,1874.7,11.7368]
[1680615228690,0.1,1874.9,1874.7,11.7328]
[1680615229087,0.1,1874.9,1874.6,0.008]
[1680615229088,0.228,1874.9,1874.6,0.008]
[1680615229266,4.381,1874.9,1874.5,0.006]
[1680615229608,0.003,1875.0,1874.8,4.75602218]
[1680615229796,0.1,1875.1,1874.9,0.64002]
[1680615229944,0.1,1875.1,1874.9,5.77202]
[1680615230146,0.1,1875.1,1874.9,2.132]
[1680615230349,0.1,1875.1,1875.0,2.132]
[1680615230647,0.1,1875.1,1874.9,11.3725]
[1680615230648,0.1,1875.1,1874.9,13.5125]
[1680615230877,0.1,1875.1,1874.9,13.5105]
[1680615231090,0.1,1875.1,1874.9,11.59184]
[1680615231390,0.1,1875.1,1874.9,13.72384]
[1680615231691,0.1,1875.1,1874.9,13.5105]
[1680615231903,0.1,1875.1,1874.9,11.59184]
[1680615232079,0.1,1875.1,1874.9,11.3785]
[1680615232601,0.1,1875.1,1874.9,11.3725]
[1680615232798,0.1,1875.1,1874.9,11.58584]
[1680615232948,0.1,1875.1,1874.9,11.3725]
[1680615233150,0.1,1875.1,1874.9,11.58584]
[1680615233948,0.1,1875.1,1874.9,11.3725]
[1680615235372,0.1,1875.1,1875.0,0.21333]
[1680615235908,0.1,1875.1,1874.9,11.58583]
[1680615236583,0.1,1875.1,1874.9,11.3725]
[1680615237204,0.1,1875.1,1874.9,11.59183]
[1680615237494,0.1,1875.1,1874.9,11.3785]
[1680615237693,0.1,1875.1,1874.9,0.006]
[1680615237896,3.6433,1875.1,1874.7,0.21936]
[1680615238106,3.303,1875.1,1874.7,2.35136]
[1680615238862,0.1,1875.1,1874.7,2.35136]
[1680615239057,0.1,1875.1,1874.7,2.77209]
[1680615239260,0.1,1875.1,1874.7,3.62555]
[1680615239890,0.1,1875.1,1874.7,1.49355]
[1680615240058,3.303,1875.1,1874.6,12.1769]
[1680615240403,3.303,1875.1,1874.7,0.64008]
[1680615240607,3.303,1875.1,1874.7,1.49354]
[1680615241111,0.1,1875.1,1874.8,2.76602218]
[1680615241399,0.1,1875.1,1874.9,1.49339]
[1680615241572,0.1,1875.1,1874.9,5.11136218]
[1680615241773,0.1,1875.1,1874.9,5.53804218]
[1680615241971,0.1,1875.1,1874.9,5.11136218]
[1680615242188,0.1,1875.1,1874.9,2.97936218]
[1680615242605,0.1,1875.1,1874.9,5.11136218]
[1680615244713,0.1,1875.1,1874.9,4.89802218]
[1680615244891,0.1,1875.1,1874.9,2.55867]
[1680615245096,0.1,1875.1,1875.0,0.21333]
[1680615245410,0.1,1875.1,1874.9,2.55867]
[1680615245411,0.1,1875.1,1874.9,2.132]
[1680615246877,0.1,1875.1,1874.8,7.3046]
[1680615247213,0.1,1875.1,1874.8,2.138]
[1680615247439,0.1,1875.1,1874.7,0.008]
[1680615247648,0.22799,1875.1,1874.6,19.7679]
[1680615247933,0.1,1875.1,1874.6,19.98127]
[1680615248286,0.1,1875.1,1874.7,2.132]
[1680615248516,0.1,1875.1,1874.6,19.7699]
[1680615248714,0.1,1875.1,1874.7,0.21336]
[1680615248920,0.1,1875.1,1874.7,2.77209]
[1680615249429,0.1,1875.1,1874.7,2.34536]
[1680615249940,0.1,1875.1,1874.7,3.32590481]
[1680615250602,0.1,1875.1,1874.7,6.09192699]
[1680615250800,0.1,1875.1,1874.9,0.64002]
[1680615251620,0.1,1875.1,1874.9,0.21334]
[1680615251998,0.1,1875.1,1874.8,2.34534]
[1680615252215,0.1,1875.1,1874.7,4.90602218]
[1680615252407,0.1,1875.1,1874.7,2.138]
[1680615252639,0.1,1875.1,1874.8,2.132]
[1680615252789,0.1,1875.1,1874.7,5.90717481]
[1680615252989,0.1,1875.1,1874.8,2.132]
[1680615253213,0.1,1875.1,1874.9,0.21334]
[1680615253490,0.1,1875.1,1874.8,0.42671]
[1680615253491,0.1,1875.1,1874.8,2.34534]
[1680615253690,0.09614751,1875.1,1874.8,2.132]
[1680615253891,0.09614751,1875.1,1874.7,5.90716481]
[1680615254108,0.09614751,1875.1,1874.7,5.90516481]
[1680615254501,0.09614751,1875.1,1874.7,5.69181481]
[1680615254902,0.09614751,1875.1,1874.7,5.90516481]
[1680615255112,0.09614751,1875.1,1874.7,3.77316481]
[1680615255311,0.22413751,1875.1,1874.7,5.69181481]
[1680615255507,0.22413751,1875.1,1874.7,2.69181481]
[1680615255508,0.09614751,1875.1,1874.7,2.69181481]
[1680615255687,0.09614751,1875.1,1874.7,2.90517481]
[1680615256070,0.09614751,1875.1,1874.7,2.69181481]
[1680615256394,0.22413751,1875.1,1874.7,2.69181481]
[1680615256736,0.09614751,1875.1,1874.7,2.69181481]
[1680615256936,0.09614751,1875.1,1874.7,0.55981481]
[1680615257144,0.09614751,1875.1,1874.7,2.89917481]
[1680615257440,0.09614751,1875.1,1874.7,0.55981481]
[1680615257594,0.44886126,1875.1,1874.7,2.89917481]
[1680615257796,0.44886126,1875.1,1874.7,0.77317481]
[1680615258028,0.44886126,1875.1,1874.7,0.55381481]
[1680615258029,4.78986126,1875.1,1874.7,0.55381481]
[1680615258193,4.78986126,1875.1,1874.7,0.55981481]
[1680615258501,4.78986126,1875.1,1874.7,0.55781481]
[1680615258703,4.78986126,1875.1,1874.7,0.77117481]
[1680615258911,4.78986126,1875.1,1874.7,0.55981481]
[1680615259120,4.78986126,1875.1,1874.7,1.39124728]
[1680615259319,4.78986126,1875.1,1874.8,0.55381481]
[1680615260147,4.341,1874.9,1874.7,0.55381481]
[1680615260305,1.136,1874.8,1874.7,0.55981481]
[1680615260643,1.136,1874.8,1874.7,0.006]
[1680615260805,4.46701,1874.8,1874.6,0.55781481]
[1680615261008,4.7732,1874.8,1874.6,0.55381481]
[1680615261624,4.90121,1874.8,1874.6,0.55381481]
[1680615262135,4.7732,1874.8,1874.6,0.55381481]
[1680615262390,4.7732,1874.8,1874.7,0.55381481]
[1680615262546,3.6372,1874.8,1874.7,0.55381481]
[1680615262702,3.76521,1874.8,1874.7,0.55381481]
[1680615262897,3.6372,1874.8,1874.7,0.55381481]
[1680615263100,3.76521,1874.8,1874.7,0.55381481]
[1680615263292,3.6372,1874.8,1874.7,0.55381481]
[1680615263498,3.76521,1874.8,1874.7,0.55381481]
[1680615263905,3.6372,1874.8,1874.6,0.55381481]
[1680615264099,3.76521,1874.8,1874.6,0.55381481]
[1680615264304,3.6372,1874.8,1874.6,0.55381481]
[1680615265127,3.56672,1874.7,1874.6,0.55381481]
[1680615265332,8.10676184,1874.7,1874.6,0.55381481]
[1680615265535,8.10976184,1874.7,1874.4,0.55381481]
[1680615265709,4.341,1874.5,1874.4,0.55381481]
[1680615265904,5.13313,1874.5,1874.4,0.55381481]
[1680615266165,5.13313,1874.5,1874.3,0.55381481]
[1680615266166,5.41414966,1874.5,1874.3,0.55381481]
[1680615266370,4.571,1874.4,1874.3,0.55381481]
[1680615266574,4.69904,1874.4,1874.3,0.55381481]
[1680615266757,5.24045597,1874.4,1874.3,0.55381481]
[1680615266951,5.24045597,1874.4,1874.2,0.55381481]
[1680615266952,8.26255815,1874.4,1874.2,0.55381481]
[1680615267195,4.36295966,1874.3,1874.2,0.55381481]
[1680615267356,4.72099966,1874.3,1874.1,1.38524728]
[1680615267689,3.433,1874.2,1874.1,0.83143247]
[1680615268197,3.56105,1874.2,1874.1,0.83143247]
[1680615268397,3.56105,1874.2,1874.1,0.55404573]
[1680615268892,3.56105,1874.2,1874.0,1.3914782]
[1680615269095,4.14200514,1874.2,1874.0,1.3854782]
[1680615269268,4.01395514,1874.2,1874.0,1.3854782]
[1680615269688,4.341,1874.1,1873.9,1.3914782]
[1680615269904,4.69906,1874.0,1873.9,0.56004573]
[1680615270088,5.13316,1874.0,1873.9,0.55404573]
[1680615270406,5.13616,1874.0,1873.9,0.55404573]
[1680615270572,5.39229,1874.0,1873.8,0.55404573]
[1680615270900,4.880229,1873.9,1873.8,0.55404573]
[1680615271105,5.238299,1873.9,1873.8,0.55404573]
[1680615271269,5.241299,1873.9,1873.8,0.55404573]
[1680615272000,5.241299,1873.9,1873.6,1.3914782]
[1680615272302,5.113229,1873.9,1873.6,1.3854782]
[1680615272482,5.113229,1873.9,1873.6,0.55404573]
[1680615272683,5.113229,1873.9,1873.7,0.55404573]
[1680615272856,5.241299,1873.9,1873.7,0.55404573]
[1680615273402,5.113229,1873.9,1873.7,0.55404573]
[1680615273587,4.344,1873.9,1873.7,0.55404573]
[1680615273811,4.341,1873.9,1873.7,0.55404573]
[1680615274011,1.138,1873.9,1873.7,0.55404573]
[1680615274677,4.341,1873.9,1873.7,0.55404573]
[1680615275112,4.34231514,1873.9,1873.6,0.55404573]
[1680615275313,4.33731514,1873.9,1873.6,0.55404573]
[1680615275625,4.46538514,1873.9,1873.6,0.55404573]
[1680615275984,4.72153514,1873.9,1873.6,0.55404573]
[1680615276334,5.19398865,1873.9,1873.6,0.55404573]
[1680615276474,0.23,1873.8,1873.5,1.4914782]
[1680615276679,3.203,1873.7,1873.6,0.55404573]
[1680615276895,3.433,1873.7,1873.6,0.55404573]
[1680615277323,7.33702218,1873.7,1873.5,0.106]
[1680615277527,3.7763,1873.6,1873.5,0.1]
[1680615277687,4.9143,1873.6,1873.5,0.1]
[1680615277884,3.7763,1873.6,1873.5,0.1]
[1680615278285,3.90439,1873.6,1873.5,0.1]
[1680615278484,3.7763,1873.6,1873.5,0.1]
[1680615279223,3.433,1873.6,1873.5,0.1]
[1680615279426,0.003,1873.7,1873.5,0.1]
[1680615279585,0.12808,1873.8,1873.5,0.1]
[1680615279921,4.341,1873.9,1873.5,0.1]
[1680615280226,0.12808,1873.8,1873.5,0.1]
[1680615280593,4.344,1873.9,1873.5,0.3135]
[1680615280825,3.33406,1874.0,1873.5,0.31349]
[1680615281035,3.33106,1874.0,1873.5,0.1]
[1680615281277,3.58719,1874.0,1873.5,0.1]
[1680615281851,3.33107,1874.0,1873.5,0.1]
[1680615282059,3.203,1873.9,1873.5,0.1]
[1680615282263,3.33108,1873.9,1873.5,0.106]
[1680615283280,3.203,1873.9,1873.5,0.106]
[1680615283477,1.141,1874.0,1873.5,0.31949]
[1680615283678,3.203,1874.0,1873.5,0.31349]
[1680615283883,4.72519,1874.0,1873.5,0.1]
[1680615284038,4.72519,1874.0,1873.5,0.106]
[1680615284238,0.23,1873.9,1873.5,0.106]
[1680615284439,3.33108,1873.8,1873.5,0.106]
[1680615285200,3.203,1873.6,1873.5,0.106]
[1680615285389,3.56109,1873.6,1873.5,0.1]
[1680615286101,3.433,1873.6,1873.5,0.1]
[1680615286612,3.203,1873.6,1873.5,0.1]
[1680615288787,3.33109,1873.6,1873.5,0.1]
[1680615288960,3.203,1873.6,1873.5,0.1]
[1680615292891,4.04853419,1873.6,1873.5,0.1]
[1680615293511,3.433,1873.6,1873.5,0.1]
[1680615294962,3.203,1873.6,1873.5,0.1]
[1680615296515,3.19975706,1873.6,1873.5,0.1]
[1680615298118,3.32784706,1873.6,1873.5,0.1]
[1680615298419,3.19975706,1873.6,1873.5,0.1]
[1680615299295,3.32784706,1873.6,1873.5,0.1]
[1680615299626,3.32784706,1873.6,1873.5,0.09687156]
[1680615300203,3.19975706,1873.6,1873.5,0.09687156]
[1680615300544,0.003,1873.7,1873.5,0.31037156]
[1680615300752,0.12806,1874.0,1873.5,0.09687156]
[1680615300950,0.12807,1873.9,1873.5,0.09687156]
[1680615301159,1.27106,1874.1,1873.5,0.31036156]
[1680615301444,3.433,1874.0,1873.5,0.31036156]
[1680615301650,3.21,1874.0,1873.5,0.86440729]
[1680615301799,0.01,1874.1,1873.6,8.36602218]
[1680615302004,2.23135446,1874.5,1873.6,8.94906791]
[1680615302232,0.38415,1874.3,1873.6,6.18304573]
[1680615302439,3.203,1874.2,1873.6,5.629]
[1680615302600,0.12806,1874.1,1873.6,5.629]
[1680615302811,0.38418,1874.1,1873.6,5.629]
[1680615303015,3.203,1874.0,1873.6,5.629]
[1680615303329,3.203,1873.9,1873.6,0.006]
[1680615303540,0.12808,1873.8,1873.5,14.89461729]
[1680615303776,0.12808,1873.8,1873.5,12.76061729]
[1680615304049,3.33107,1873.9,1873.5,0.65691729]
[1680615304352,3.203,1873.7,1873.5,0.09687156]
[1680615304550,3.5233,1873.6,1873.5,0.09687156]
[1680615304707,3.203,1873.6,1873.5,0.09687156]
[1680615305260,3.33109,1873.6,1873.5,0.09687156]
[1680615305419,7.48707184,1873.6,1873.5,0.09687156]
[1680615305618,7.74626184,1873.6,1873.5,0.09687156]
[1680615305818,8.26539802,1873.6,1873.5,0.09687156]
[1680615306236,8.13730802,1873.6,1873.5,0.09687156]
[1680615306725,4.23328584,1873.6,1873.5,0.09687156]
[1680615306910,4.00028584,1873.6,1873.5,0.09687156]
[1680615307674,3.203,1873.6,1873.5,0.65091729]
[1680615308023,3.203,1873.6,1873.5,0.09687156]
[1680615308217,3.203,1873.6,1873.5,0.65091729]
[1680615308424,0.01,1873.7,1873.5,0.65091729]
[1680615308769,3.21,1873.8,1873.5,0.65091729]
[1680615309163,3.71239084,1873.8,1873.5,0.65091729]
[1680615309664,0.007,1873.8,1873.5,0.65091729]
[1680615309865,3.203,1873.9,1873.6,1.3854782]
[1680615310065,3.21,1873.9,1873.7,0.55404573]
[1680615310268,3.21,1873.9,1873.7,1.3854782]
[1680615310472,0.003,1874.0,1873.8,0.55404573]
[1680615310473,0.01,1874.0,1873.8,0.55404573]
[1680615310620,1.36813545,1874.4,1873.8,2.0258682]
[1680615310825,1.36813545,1874.4,1873.9,0.55404573]
[1680615310826,4.69917545,1874.4,1873.9,0.55404573]
[1680615311082,4.69917545,1874.4,1873.8,1.3854782]
[1680615311243,4.95525545,1874.4,1873.8,1.3854782]
[1680615311488,4.95525545,1874.4,1873.9,0.55404573]
[1680615311668,3.203,1874.2,1873.8,0.55404573]
[1680615311864,3.203,1874.0,1873.9,0.55404573]
[1680615312818,0.007,1874.1,1873.9,1.3854782]
[1680615312970,0.007,1874.2,1873.9,1.3854782]